bitfinex-derivatives/quotes_SOLF0:USTF0_20250331
["timestamp","ask_amount","ask_price","bid_price","bid_amount"]
[1743430068099,7.9375,126.01,125.99,62.05808043]
[1743430068502,0.0573951,126.02,125.99,62.05808043]
[1743430068899,0.0573951,126.02,126.0,36.44]
[1743430069296,0.0573951,126.02,126.01,7.9373]
[1743430069700,0.0573951,126.02,125.99,62.05808043]
[1743430069896,7.9379,126.0,125.99,0.05808043]
[1743430071802,7.9398,125.97,125.96,4.1147]
[1743430072002,22.76542162,126.02,125.96,4.1147]
[1743430072395,22.76542162,126.02,125.96,12.0547]
[1743430072603,22.76542162,126.02,125.96,4.1147]
[1743430072900,0.05108472,126.0,125.98,0.05695758]
[1743430073700,7.98928472,126.0,125.98,0.05695758]
[1743430074229,0.05108472,126.0,125.99,7.9385]
[1743430074502,22.76542162,126.06,125.99,4.2605]
[1743430074707,7.9363,126.03,125.99,4.2605]
[1743430074904,22.76542162,126.06,125.99,4.2605]
[1743430075306,22.76542162,126.04,125.99,4.2605]
[1743430075499,22.81613397,126.04,126.01,0.05451385]
[1743430075699,7.936,126.03,126.01,0.05451385]
[1743430075909,0.05071235,126.04,126.01,0.05451385]
[1743430076399,22.81613397,126.04,126.01,0.05451385]
[1743430077105,22.76542162,126.02,126.01,1.385e-05]
[1743430077807,30.70202162,126.02,126.01,1.385e-05]
[1743430078799,7.9366,126.02,126.01,1.385e-05]
[1743430080310,10.86341838,126.03,126.01,7.93691385]
[1743430080514,119.54831459,126.04,126.01,1.385e-05]
[1743430080811,99.80381459,126.04,126.01,4.02381385]
[1743430081111,166.05527973,126.05,126.01,34.72923547]
[1743430081306,166.05527973,126.05,126.03,22.76542162]
[1743430081615,38.28364422,126.06,126.04,36.44]
[1743430081807,38.28364422,126.06,126.05,22.76542162]
[1743430082000,271.58545965,126.07,126.06,7.9341]
[1743430082001,106.95430657,126.07,126.06,7.9341]
[1743430082203,66.08010657,126.07,126.06,9.36906325]
[1743430082406,66.08010657,126.07,126.06,17.30906325]
[1743430082707,35.20550486,126.14,126.06,9.37431842]
[1743430082911,35.20550486,126.14,126.07,1.43431842]
[1743430083106,0.05891793,126.11,126.09,0.05045774]
[1743430083307,0.05891793,126.11,126.1,7.9316]
[1743430083505,0.05891793,126.11,126.1,15.8516]
[1743430084113,0.05891793,126.11,126.1,77.8516]
[1743430084309,0.05891793,126.11,126.1,69.92]
[1743430084510,0.05891793,126.11,126.1,62.0]
[1743430085504,0.05891793,126.11,126.1,261.1035963]
[1743430087413,35.25082162,126.2,126.1,69.92]
[1743430087607,22.76542162,126.22,126.11,22.76542162]
[1743430087811,22.76542162,126.24,126.13,22.76542162]
[1743430088214,297.9808,126.27,126.15,22.76542162]
[1743430088406,22.76542162,126.24,126.16,36.4]
[1743430088609,0.05003212,126.22,126.2,0.05307165]
[1743430088811,7.9247,126.21,126.2,0.05307165]
[1743430089320,0.05003212,126.22,126.2,0.05307165]
[1743430090019,0.05003212,126.22,126.2,7.97307165]
[1743430090206,0.05003212,126.22,126.21,7.9247]
[1743430090406,0.05003212,126.22,126.2,7.97307165]
[1743430090705,0.05003212,126.22,126.21,62.0]
[1743430091315,0.05003212,126.22,126.21,69.92]
[1743430091814,0.05003212,126.22,126.21,77.8447]
[1743430092214,0.05003212,126.22,126.21,69.92]
[1743430092614,0.05003212,126.22,126.21,62.0]
[1743430092817,0.05003212,126.22,126.21,69.9247]
[1743430093112,0.05003212,126.22,126.21,77.8447]
[1743430093314,0.05003212,126.22,126.21,114.84145747]
[1743430093621,3.212e-05,126.22,126.21,114.84145747]
[1743430095313,3.212e-05,126.22,126.21,116.2712802]
[1743430095913,8.6469,126.32,126.26,7.9212]
[1743430096217,4.0339,126.34,126.27,36.36]
[1743430096418,7.9185,126.31,126.28,36.36]
[1743430096614,4.0339,126.34,126.28,36.36]
[1743430097214,0.05888864,126.32,126.3,0.05899238]
[1743430097717,7.97708864,126.32,126.3,0.05899238]
[1743430097915,0.05888864,126.32,126.3,0.05899238]
[1743430098820,7.9184,126.31,126.3,0.05899238]
[1743430099020,0.05888864,126.32,126.3,0.05899238]
[1743430099420,7.97718864,126.32,126.3,0.05899238]
[1743430099622,0.05888864,126.32,126.3,0.05899238]
[1743430100515,0.05888864,126.32,126.3,7.97799238]
[1743430100714,0.05888864,126.32,126.3,0.05899238]
[1743430101114,7.9184,126.31,126.3,0.05899238]
[1743430101311,0.05888864,126.32,126.3,0.05899238]
[1743430102221,7.9184,126.31,126.3,0.05899238]
[1743430102722,7.97688864,126.32,126.3,0.05899238]
[1743430103627,0.05888864,126.32,126.3,0.05899238]
[1743430106321,7.9184,126.31,126.3,0.05899238]
[1743430106722,0.05888864,126.32,126.3,0.05899238]
[1743430106924,7.97708864,126.32,126.3,0.05899238]
[1743430107126,0.05888864,126.32,126.3,0.05899238]
[1743430107328,7.97698864,126.32,126.3,0.05899238]
[1743430107630,0.05888864,126.32,126.3,0.05899238]
[1743430107825,7.97698864,126.32,126.3,0.05899238]
[1743430108022,0.05888864,126.32,126.3,0.05899238]
[1743430108422,0.05888864,126.32,126.31,7.9184]
[1743430108825,8.864e-05,126.32,126.31,15.8384]
[1743430109519,36.99675747,126.45,126.31,9.34491549]
[1743430109719,36.99675747,126.45,126.34,36.99675747]
[1743430110023,7.9128,126.4,126.33,22.71144341]
[1743430110223,22.71144341,126.44,126.33,22.71144341]
[1743430110428,7.9131,126.4,126.36,7.9148]
[1743430110622,0.05220803,126.4,126.37,0.05786588]
[1743430111924,0.05220803,126.4,126.38,62.0]
[1743430112131,7.9134,126.39,126.38,62.0]
[1743430112329,0.05220803,126.4,126.37,0.05786588]
[1743430112528,4.2433,126.39,126.37,0.05786588]
[1743430112729,8.447,126.39,126.37,0.05786588]
[1743430113033,7.914,126.38,126.37,0.05786588]
[1743430115033,0.05220803,126.4,126.37,0.05786588]
[1743430115236,0.05220803,126.4,126.38,62.0]
[1743430115438,7.9134,126.39,126.38,62.0]
[1743430115832,0.05220803,126.4,126.38,62.0]
[1743430116034,7.96550803,126.4,126.38,62.0]
[1743430116230,0.05220803,126.4,126.38,62.0]
[1743430116934,0.05220803,126.4,126.39,7.9134]
[1743430117340,8.03e-06,126.4,126.39,30.62484341]
[1743430117536,8.03e-06,126.4,126.39,38.54484341]
[1743430118234,3.9796,126.51,126.39,30.63144341]
[1743430118434,3.9796,126.51,126.41,22.71144341]
[1743430118639,22.71144341,126.48,126.4,321.08]
[1743430118838,22.71144341,126.46,126.4,284.78]
[1743430119040,22.71144341,126.44,126.4,36.3]
[1743430119243,12.7297,126.45,126.37,36.3]
[1743430119449,0.05196206,126.43,126.41,0.05886214]
[1743430120243,0.03196206,126.43,126.41,0.05886214]
[1743430120745,7.9115,126.42,126.41,0.05886214]
[1743430120945,0.03196206,126.43,126.41,36.35886214]
[1743430121344,0.03196206,126.43,126.41,44.27046214]
[1743430121546,0.03196206,126.43,126.41,36.35886214]
[1743430121946,0.03196206,126.43,126.42,7.9115]
[1743430122449,0.03196206,126.43,126.41,36.35886214]
[1743430123648,0.03196206,126.43,126.42,7.9115]
[1743430124053,0.03196206,126.43,126.42,69.9115]
[1743430124445,5.585e-05,126.43,126.42,69.9115]
[1743430124653,5.585e-05,126.43,126.42,62.0]
[1743430125346,5.585e-05,126.43,126.42,69.9115]
[1743430126351,8.4362,126.5,126.44,7.9099]
[1743430126549,8.4362,126.5,126.45,36.28]
[1743430126550,7.908,126.48,126.45,36.28]
[1743430126846,8.4362,126.5,126.45,36.28]
[1743430127248,8.4362,126.5,126.44,36.28]
[1743430127448,8.4362,126.5,126.44,44.1902]
[1743430127651,7.9410517,126.48,126.46,0.05802951]
[1743430127854,0.0329517,126.48,126.46,0.05802951]
[1743430128849,7.9084,126.47,126.46,0.05802951]
[1743430129052,0.0329517,126.48,126.46,0.05802951]
[1743430129548,0.0329517,126.48,126.47,62.0]
[1743430131651,0.0329517,126.48,126.46,0.05802951]
[1743430131951,0.0329517,126.48,126.46,7.96662951]
[1743430132352,0.0329517,126.48,126.46,0.05802951]
[1743430133348,30.64439511,126.48,126.42,85.14159697]
[1743430133549,22.71144341,126.44,126.42,6.25839697]
[1743430133755,7.9109,126.43,126.42,6.25839697]
[1743430133948,22.71144341,126.46,126.42,6.25839697]
[1743430134155,36.26,126.47,126.42,6.25839697]
[1743430134156,22.71144341,126.48,126.42,6.25839697]
[1743430134656,0.05953591,126.46,126.44,0.05155219]
[1743430137056,7.96863591,126.46,126.44,0.05155219]
[1743430137458,0.05953591,126.46,126.44,0.05155219]
[1743430137755,7.9096,126.45,126.44,0.05155219]
[1743430139667,15.8096,126.45,126.44,5.219e-05]
[1743430139961,7.9,126.45,126.37,36.26]
[1743430140160,22.71144341,126.44,126.36,36.26]
[1743430140361,7.9138,126.39,126.36,36.26]
[1743430140560,7.9138,126.39,126.36,44.175]
[1743430140750,22.71144341,126.44,126.36,36.26]
[1743430140952,7.9144,126.38,126.36,36.31259238]
[1743430141150,0.05626603,126.39,126.33,12.5025]
[1743430141354,0.05626603,126.39,126.36,0.05678687]
[1743430141854,0.05626603,126.39,126.38,7.914]
[1743430142061,0.05626603,126.39,126.38,69.914]
[1743430142261,58.99144341,126.46,126.4,7.9126]
[1743430142454,58.99144341,126.46,126.39,36.28]
[1743430142759,7.91,126.45,126.39,36.28]
[1743430142959,58.99144341,126.46,126.38,62.0]
[1743430143157,22.71144341,126.44,126.38,62.0]
[1743430143358,0.05625132,126.43,126.41,0.05625495]
[1743430143656,22.71144341,126.42,126.41,0.05625495]
[1743430144257,66.91144341,126.42,126.31,284.58]
[1743430144454,22.71144341,126.4,126.31,320.86]
[1743430145451,0.05149635,126.37,126.34,0.06071171]
[1743430146363,36.28,126.45,126.38,7.9137]
[1743430146556,22.71144341,126.44,126.39,62.0]
[1743430146753,7.9112,126.43,126.39,62.0]
[1743430146957,22.71144341,126.44,126.39,62.0]
[1743430147354,0.05852053,126.43,126.4,0.0564221]
[1743430147556,22.71144341,126.42,126.4,0.0564221]
[1743430147858,30.62324341,126.42,126.4,0.0564221]
[1743430148061,22.71144341,126.42,126.4,0.0564221]
[1743430148557,0.05852053,126.43,126.4,0.0564221]
[1743430150265,58.99144341,126.42,126.35,40.5061]
[1743430150456,22.71144341,126.4,126.35,36.28]
[1743430150654,22.71144341,126.4,126.32,40.4852]
[1743430150863,22.71144341,126.4,126.36,7.9149]
[1743430151266,22.71144341,126.4,126.32,102.4852]
[1743430151461,0.05376496,126.39,126.37,0.05455751]
[1743430151858,0.05376496,126.39,126.37,7.96875751]
[1743430152055,0.05376496,126.39,126.37,0.05455751]
[1743430152461,0.05376496,126.39,126.38,7.914]
[1743430152958,0.05376496,126.39,126.37,0.05455751]
[1743430153764,0.05376496,126.39,126.38,7.914]
[1743430155165,0.05376496,126.39,126.37,0.05455751]
[1743430156468,0.05376496,126.39,126.37,7.96915751]
[1743430156960,0.05376496,126.39,126.37,0.05455751]
[1743430158371,7.96756496,126.39,126.37,0.05455751]
[1743430158773,22.71144341,126.38,126.32,40.4852]
[1743430158974,22.71144341,126.38,126.32,4.2052]
[1743430159171,22.71144341,126.4,126.32,4.2052]
[1743430159568,22.71144341,126.4,126.34,7.9161]
[1743430159969,0.05536764,126.38,126.36,0.06045491]
[1743430160969,7.96956764,126.38,126.36,0.06045491]
[1743430161174,59.04681105,126.38,126.26,42.08803148]
[1743430161370,22.71144341,126.34,126.27,12.8322]
[1743430161675,30.62834341,126.34,126.28,7.92]
[1743430161878,22.71144341,126.34,126.27,49.1122]
[1743430162272,0.06065596,126.32,126.29,0.05195121]
[1743430163373,0.06065596,126.32,126.29,69.97155121]
[1743430163576,0.06065596,126.32,126.29,62.05195121]
[1743430163772,58.99144341,126.38,126.29,62.05195121]
[1743430163980,22.71144341,126.38,126.29,62.0]
[1743430164978,0.05560488,126.35,126.32,0.06092131]
[1743430165373,7.9169,126.34,126.32,0.06092131]
[1743430165778,0.05560488,126.35,126.32,0.06092131]
[1743430165973,7.9172,126.33,126.32,0.06092131]
[1743430166772,7.9188,126.31,126.27,12.8322]
[1743430167478,22.71144341,126.34,126.27,20.7526]
[1743430167783,22.71144341,126.34,126.27,12.8322]
[1743430167972,0.05421746,126.32,126.29,0.05019186]
[1743430168879,22.76566087,126.32,126.29,0.05019186]
[1743430169283,59.06566087,126.32,126.29,0.05019186]
[1743430169577,22.71144341,126.3,126.29,9.186e-05]
[1743430170085,30.63044341,126.3,126.29,9.186e-05]
[1743430170683,7.919,126.3,126.29,9.186e-05]
[1743430171579,30.63044341,126.3,126.29,9.186e-05]
[1743430172279,7.922,126.26,126.23,74.5413]
[1743430172485,7.922,126.26,126.23,110.8413]
[1743430172680,22.71144341,126.3,126.23,110.8413]
[1743430172884,7.9222,126.25,126.23,110.8413]
[1743430173081,22.71144341,126.28,126.23,8.3031]
[1743430173285,22.71144341,126.28,126.19,40.5453]
[1743430173581,0.05225819,126.27,126.24,0.05991376]
[1743430173785,7.9222,126.25,126.24,0.05991376]
[1743430174190,0.05225819,126.27,126.24,0.05991376]
[1743430174379,0.05225819,126.27,126.24,36.35991376]
[1743430174686,0.05225819,126.27,126.24,0.05991376]
[1743430174986,7.97365819,126.27,126.24,7.98261376]
[1743430175489,0.05225819,126.27,126.24,0.05991376]
[1743430176688,0.05225819,126.27,126.25,36.3]
[1743430177081,0.05225819,126.27,126.25,44.2219]
[1743430177281,0.05225819,126.27,126.25,36.3]
[1743430177687,0.05225819,126.27,126.25,44.2217]
[1743430178286,7.97335819,126.27,126.25,44.2217]
[1743430178585,0.05225819,126.27,126.25,36.3]
[1743430178884,0.05225819,126.27,126.24,0.05991376]
[1743430179389,0.05225819,126.27,126.24,7.98261376]
[1743430179587,0.05225819,126.27,126.24,0.05991376]
[1743430180486,7.9222,126.25,126.24,0.05991376]
[1743430180787,0.05225819,126.27,126.24,0.05991376]
[1743430181383,7.9219,126.26,126.24,7.98241376]
[1743430181587,0.05225819,126.27,126.24,0.05991376]
[1743430182485,7.9218,126.26,126.24,0.05991376]
[1743430183285,7.9222,126.25,126.24,0.05991376]
[1743430183591,0.05225819,126.27,126.24,0.05991376]
[1743430183785,7.9222,126.25,126.24,0.05991376]
[1743430184182,22.71144341,126.26,126.24,0.05991376]
[1743430184386,0.05225819,126.27,126.24,0.05991376]
[1743430184797,7.97345819,126.27,126.24,7.98221376]
[1743430185290,7.9221,126.26,126.24,0.05991376]
[1743430185488,0.05225819,126.27,126.24,0.05991376]
[1743430185890,7.9222,126.25,126.24,0.05991376]
[1743430187295,7.9243,126.22,126.19,12.2497]
[1743430187591,22.71144341,126.25,126.19,12.2497]
[1743430187791,7.9212,126.27,126.19,12.2497]
[1743430187981,7.9212,126.27,126.24,7.9224]
[1743430188495,7.97269206,126.27,126.24,7.98174074]
[1743430188696,7.9216,126.26,126.24,7.98174074]
[1743430188997,7.9216,126.26,126.24,0.05934074]
[1743430189194,7.9222,126.25,126.24,0.05934074]
[1743430189493,0.05149206,126.27,126.24,7.98204074]
[1743430189992,0.05149206,126.27,126.24,0.05934074]
[1743430190197,14.28145878,126.27,126.24,0.05934074]
[1743430190989,7.9219,126.26,126.24,0.05934074]
[1743430191285,14.22996672,126.25,126.19,12.2497]
[1743430191494,7.9241,126.22,126.19,48.5497]
[1743430191689,7.9241,126.22,126.19,56.4754]
[1743430192190,7.925,126.21,126.19,12.2497]
[1743430192393,14.22996672,126.21,126.14,100.3406827]
[1743430192594,14.28989312,126.21,126.19,0.05570452]
[1743430192896,14.28989312,126.21,126.16,36.32]
[1743430193097,0.0599264,126.21,126.19,0.05861739]
[1743430193498,14.22996672,126.2,126.15,8.2336]
[1743430193695,22.80376486,126.18,126.15,8.2336]
[1743430194797,22.85722969,126.18,126.15,8.29122709]
[1743430195796,0.05346483,126.18,126.15,8.29122709]
[1743430196196,0.05346483,126.18,126.17,7.9272]
[1743430197194,22.80376486,126.2,126.15,0.05762709]
[1743430197589,22.80376486,126.18,126.15,0.05762709]
[1743430197794,22.80376486,126.18,126.14,8.2019]
[1743430198298,0.05615014,126.17,126.15,0.05710863]
[1743430199292,22.80376486,126.22,126.15,0.05710863]
[1743430199597,22.80376486,126.22,126.14,8.2019]
[1743430199994,30.72786486,126.22,126.17,7.9268]
[1743430200199,30.72786486,126.22,126.14,8.2019]
[1743430200497,0.05021354,126.19,126.17,0.0591386]
[1743430200899,0.05021354,126.19,126.17,7.9862386]
[1743430201099,0.05021354,126.19,126.17,0.0591386]
[1743430201590,22.80376486,126.24,126.17,36.3791386]
[1743430202394,22.80376486,126.2,126.17,0.0591386]
[1743430202797,22.85650228,126.2,126.17,0.0591386]
[1743430203194,22.85650228,126.2,126.17,7.9860386]
[1743430203500,22.85650228,126.2,126.17,0.0591386]
[1743430204001,0.05273742,126.2,126.17,0.0591386]
[1743430204697,0.05273742,126.2,126.18,7.9265]
[1743430204894,0.05273742,126.2,126.17,0.0591386]
[1743430205295,22.80376486,126.19,126.17,0.0591386]
[1743430205897,30.72996486,126.19,126.17,0.0591386]
[1743430206096,22.80376486,126.19,126.17,0.0591386]
[1743430207002,0.05273742,126.2,126.17,0.0591386]
[1743430207906,0.05273742,126.2,126.18,7.9266]
[1743430208107,0.05273742,126.2,126.17,0.0591386]
[1743430208503,0.05273742,126.2,126.18,7.9262]
[1743430209309,0.05273742,126.2,126.17,0.0591386]
[1743430210603,0.05273742,126.2,126.17,4.2272386]
[1743430210998,0.05273742,126.2,126.19,7.9259]
[1743430211505,22.80376486,126.29,126.18,31.18916486]
[1743430211705,22.80376486,126.29,126.2,62.0]
[1743430211914,384.80376486,126.29,126.2,62.0]
[1743430212203,22.80376486,126.27,126.18,8.3854]
[1743430212405,7.9225,126.25,126.18,8.3854]
[1743430212605,0.05255806,126.24,126.21,0.05840092]
[1743430213018,22.80376486,126.31,126.25,7.9217]
[1743430213311,22.80376486,126.31,126.2,59.12376486]
[1743430213610,22.80376486,126.31,126.25,7.9218]
[1743430213806,22.80376486,126.31,126.24,36.32]
[1743430214200,0.05990727,126.29,126.26,0.05608357]
[1743430214601,0.05990727,126.29,126.26,7.97728357]
[1743430215114,7.97990727,126.29,126.26,0.05608357]
[1743430215416,0.2788,126.38,126.26,22.85984843]
[1743430215417,22.80376486,126.37,126.26,22.85984843]
[1743430215605,7.9166,126.34,126.28,7.92]
[1743430215805,7.9166,126.34,126.29,36.3]
[1743430216208,22.80376486,126.37,126.29,36.3]
[1743430216209,7.9161,126.35,126.29,44.2196]
[1743430216409,22.80376486,126.37,126.29,36.3]
[1743430216710,0.05260696,126.33,126.31,0.05168259]
[1743430217707,22.80376486,126.39,126.31,0.05168259]
[1743430217909,22.80376486,126.39,126.31,4.37108259]
[1743430218109,22.80376486,126.39,126.31,4.3194]
[1743430218305,7.9156,126.36,126.31,4.3194]
[1743430218510,7.9156,126.36,126.32,62.0]
[1743430218710,22.80376486,126.39,126.32,62.0]
[1743430218911,22.80376486,126.33,126.21,380.80376486]
[1743430219214,36.3,126.34,126.24,40.3988]
[1743430219516,7.9203,126.28,126.27,0.0598567]
[1743430220213,7.97605254,126.29,126.27,0.0598567]
[1743430220515,0.05615254,126.29,126.27,0.0598567]
[1743430223613,7.9182,126.32,126.27,44.2605567]
[1743430223814,59.08376486,126.37,126.27,36.3398567]
[1743430224003,362.0,126.38,126.28,22.80376486]
[1743430224707,0.05699883,126.34,126.32,0.05891718]
[1743430224904,0.05699883,126.34,126.33,36.28]
[1743430225111,7.918,126.32,126.3,36.28]
[1743430225309,7.918,126.32,126.31,62.0]
[1743430225512,7.97489883,126.32,126.3,36.34048946]
[1743430225708,0.05699883,126.32,126.3,36.34048946]
[1743430226110,7.9184,126.31,126.3,36.34048946]
[1743430226308,7.9184,126.31,126.3,0.06048946]
[1743430227015,7.9184,126.31,126.3,8.946e-05]
[1743430229519,0.05699883,126.32,126.3,8.946e-05]
[1743430229908,7.97519883,126.32,126.3,8.946e-05]
[1743430230111,0.05699883,126.32,126.3,8.946e-05]
[1743430230620,0.05699883,126.32,126.31,7.9184]
[1743430230818,22.80376486,126.38,126.3,8.946e-05]
[1743430231012,22.80376486,126.38,126.28,59.06376486]
[1743430231616,7.9164,126.35,126.28,59.06376486]
[1743430231812,22.80376486,126.38,126.28,59.06376486]
[1743430232016,0.05557889,126.33,126.3,0.05969677]
[1743430232217,22.80376486,126.36,126.28,36.26]
[1743430232415,0.05476051,126.33,126.3,0.05432096]
[1743430233618,7.9184,126.31,126.3,0.05432096]
[1743430236321,0.05476051,126.33,126.3,0.05432096]
[1743430236826,7.9184,126.31,126.3,0.05432096]
[1743430238618,7.9184,126.31,126.3,2.096e-05]
[1743430239021,22.80376486,126.3,126.24,4.0988]
[1743430239522,22.80376486,126.3,126.23,40.3187]
[1743430239721,22.80376486,126.3,126.23,48.2418]
[1743430240021,7.97907107,126.28,126.25,0.05937509]
[1743430240521,0.05847107,126.28,126.25,0.05937509]
[1743430241620,7.97907107,126.28,126.25,0.05937509]
[1743430241922,0.05847107,126.28,126.25,0.05937509]
[1743430242622,0.05847107,126.28,126.25,7.98117509]
[1743430243119,0.05847107,126.28,126.25,0.05937509]
[1743430243726,22.80376486,126.26,126.19,11.9123]
[1743430243930,22.80376486,126.24,126.17,4.3163]
[1743430244125,22.80376486,126.22,126.17,4.3163]
[1743430244425,22.80376486,126.22,126.15,152.09751598]
[1743430244627,22.80376486,126.24,126.16,90.42701598]
[1743430244823,22.80376486,126.24,126.18,7.9266]
[1743430245019,0.06080942,126.21,126.19,0.05502378]
[1743430245923,7.9253,126.2,126.19,0.05502378]
[1743430246515,7.98580942,126.21,126.19,0.05502378]
[1743430246719,0.06080942,126.21,126.19,0.05502378]
[1743430247221,22.80376486,126.26,126.19,0.05502378]
[1743430247423,22.80376486,126.26,126.2,7.9249]
[1743430247827,22.80376486,126.26,126.19,36.26]
[1743430247828,7.9231,126.24,126.19,36.26]
[1743430248527,0.05141704,126.23,126.2,0.0567054]
[1743430248723,0.05141704,126.23,126.21,7.9245]
[1743430248919,7.97491704,126.23,126.2,0.0567054]
[1743430249822,0.05141704,126.23,126.2,0.0567054]
[1743430250226,344.12376486,126.3,126.2,27.19217026]
[1743430250422,344.12376486,126.3,126.2,27.13546486]
[1743430250729,344.12376486,126.3,126.22,7.9237]
[1743430250924,7.922,126.26,126.23,62.0]
[1743430251121,344.12376486,126.3,126.23,62.0]
[1743430251324,0.05046138,126.26,126.23,62.05041782]
[1743430252328,22.80376486,126.32,126.24,36.26]
[1743430252629,385.20416486,126.34,126.24,63.38106486]
[1743430252829,23.20416486,126.34,126.27,7.9206]
[1743430253031,23.20416486,126.34,126.24,63.38106486]
[1743430253421,22.80376486,126.34,126.24,63.38106486]
[1743430253621,7.9187,126.31,126.28,0.05747333]
[1743430254224,7.9194,126.3,126.28,0.05747333]
[1743430254427,22.80376486,126.32,126.28,0.05747333]
[1743430254730,22.80376486,126.3,126.28,7.333e-05]
[1743430254936,59.04376486,126.3,126.24,4.3173]
[1743430255422,7.9222,126.25,126.24,4.3173]
[1743430255928,7.97821983,126.26,126.24,4.3173]
[1743430257333,0.05631983,126.26,126.23,0.05175771]
[1743430257929,7.9228,126.24,126.23,0.05175771]
[1743430260335,7.9228,126.24,126.23,5.771e-05]
[1743430261933,7.9224,126.25,126.23,5.771e-05]
[1743430262440,44.21821983,126.26,126.23,5.771e-05]
[1743430262638,36.29631983,126.26,126.23,5.771e-05]
[1743430262834,59.10008469,126.26,126.23,5.771e-05]
[1743430263429,0.05631983,126.26,126.23,5.771e-05]
[1743430263632,0.05631983,126.26,126.24,7.9224]
[1743430263838,0.05631983,126.26,126.23,5.771e-05]
[1743430264040,0.05631983,126.26,126.23,3.95375771]
[1743430264239,0.05631983,126.26,126.25,7.9222]
[1743430265044,22.80376486,126.32,126.26,7.9212]
[1743430265443,7.9199,126.29,126.26,7.9212]
[1743430266141,7.9194,126.3,126.27,7.9209]
[1743430266444,0.05069912,126.29,126.26,36.29712348]
[1743430266637,0.05069912,126.29,126.27,7.9206]
[1743430266947,0.05069912,126.29,126.26,36.29267934]
[1743430267144,7.9181,126.32,126.26,59.0964442]
[1743430267344,7.9181,126.32,126.26,59.04376486]
[1743430267547,285.06,126.36,126.31,7.9179]
[1743430268041,285.06,126.36,126.3,36.24]
[1743430268235,307.86376486,126.36,126.27,36.24]
[1743430268442,22.80376486,126.34,126.32,0.05844062]
[1743430269041,7.9172,126.33,126.32,4.062e-05]
[1743430270343,7.92,126.33,126.24,8.4501]
[1743430270647,22.80376486,126.31,126.24,8.4501]
[1743430270838,59.02376486,126.31,126.24,8.4501]
[1743430271343,22.80376486,126.26,126.2,86.11071598]
[1743430271745,22.80376486,126.26,126.22,0.05266938]
[1743430271946,7.9234,126.23,126.22,0.05266938]
[1743430272649,0.05954435,126.24,126.22,0.05266938]
[1743430272852,0.05954435,126.24,126.23,7.9234]
[1743430273148,7.9206,126.28,126.23,7.9234]
[1743430273339,307.80376486,126.34,126.24,62.0]
[1743430273542,307.80376486,126.34,126.27,7.9206]
[1743430273543,7.9187,126.31,126.27,7.9206]
[1743430273747,7.9187,126.31,126.27,44.1406]
[1743430274242,307.80376486,126.34,126.28,0.05138389]
[1743430274441,22.80376486,126.36,126.28,0.05138389]
[1743430274651,22.80376486,126.36,126.29,7.9194]
[1743430274848,22.80376486,126.36,126.31,0.05582707]
[1743430275749,7.9168,126.34,126.31,0.05582707]
[1743430276145,307.84376486,126.4,126.31,36.27582707]
[1743430276450,22.80376486,126.38,126.32,8.5634]
[1743430276645,22.80376486,126.38,126.34,0.05676147]
[1743430277251,307.84376486,126.4,126.34,0.05676147]
[1743430277446,22.80376486,126.4,126.34,0.05676147]
[1743430277638,0.4779,126.43,126.35,36.22]
[1743430277854,7.9108,126.44,126.39,7.9132]
[1743430278144,22.80376486,126.47,126.4,36.2]
[1743430278540,22.80376486,126.47,126.4,44.1126]
[1743430278742,22.80376486,126.47,126.42,0.0582997]
[1743430281157,22.80376486,126.45,126.42,0.0582997]
[1743430281549,22.80376486,126.43,126.42,0.0582997]
[1743430281956,22.80376486,126.43,126.37,36.2]
[1743430283051,36.2,126.45,126.37,36.2]
[1743430283260,0.05220177,126.41,126.39,0.05491857]
[1743430283454,22.80376486,126.47,126.41,7.9121]
[1743430283972,22.80376486,126.47,126.37,36.2]
[1743430284160,22.80376486,126.47,126.4,7.9128]
[1743430284352,22.80376486,126.47,126.41,36.18]
[1743430284554,22.80376486,126.47,126.42,0.05322178]
[1743430284757,22.80376486,126.47,126.42,62.05322178]
[1743430284961,22.80376486,126.45,126.42,0.05322178]
[1743430285252,22.80376486,126.45,126.36,4.2052]
[1743430285253,22.80376486,126.43,126.36,4.2052]
[1743430286253,22.80376486,126.41,126.35,4.3879]
[1743430286458,36.18,126.4,126.38,0.05157651]
[1743430286763,36.18,126.4,126.31,40.26]
[1743430287061,22.80376486,126.38,126.31,4.08]
[1743430287858,0.06063034,126.36,126.33,0.05350635]
[1743430288054,59.0443952,126.36,126.33,0.05350635]
[1743430288455,0.06063034,126.36,126.33,0.05350635]
[1743430289260,36.18,126.42,126.33,0.05350635]